[Event "Romanian Amateur Championship 2024"]
[Site "Eforie Nord"]
[Date "2024.02.29"]
[Round "6.4"]
[White "Sprincean, Lukas George"]
[Black "Cazan, Mircea-Andrei"]
[Result "1-0"]
[ECO "B68"]
[WhiteElo "1640"]
[BlackElo "1894"]
[Annotator "NA RC"]
[PlyCount "113"]
[EventDate "2024.02.26"]
[EventType "swiss"]
[EventCountry "ROU"]
[SourceTitle "playchess.com"]
[Source "ChessBase"]
[SourceQuality "1"]
[TimeControl "3600+30"]

1. e4 {[%emt 0:00:04]} c5 {[%emt 0:03:22]} 2. Nf3 {[%emt 0:00:16]} Nc6 {[%emt 0:00:08]} 3. d4 {[%emt 0:00:05]} cxd4 {[%emt 0:00:09]} 4. Nxd4 {[%emt 0:00:10]} Nf6 {[%emt 0:00:06]} 5. Nc3 {[%emt 0:00:07]} d6 {[%emt 0:00:05]} 6. Bg5 {[%emt 0:00:06]} e6 {[%emt 0:04:02]} 7. Qd2 {[%emt 0:00:12]} a6 {[%emt 0:00:13]} 8. O-O-O {[%emt 0:00:11]} Bd7 {[%emt 0:02:40]} 9. f4 {[%emt 0:00:39]} Be7 {[%emt 0:00:06] is cutting edge theory.} 10. Kb1 {[%emt 0:03:17]} b5 {[%emt 0:01:24] B68: Sicilian: Richter-Rauzer: 7...a6 8 0-0-0 Bd7 9 f4 Be7 .} 11. a3 {[%emt 1:00:53]} Qb6 {[%emt 0:08:03]} 12. Nf3 $146 {[%emt 0:00:00]} ({Predecessor:} 12. Nb3 b4 13. axb4 Qa7 14. Bxf6 gxf6 15. Na2 Rb8 16. Nd4 Qb7 17. c3 Nxd4 18. Qxd4 {1-0 Kamalidenova,M (2339)-Soumya,S (2351) Asian Online (Women) rapid 2021 (3)}) 12... O-O-O {[%emt 0:12:45]} 13. Bd3 {[%emt 0:00:00]} Kb8 {[%emt 0:04:32]} 14. Rhe1 {[%emt 0:00:00]} Bc8 {[%emt 0:12:48]} 15. Bxf6 {[%emt 0:00:00]} Bxf6 {[%emt 0:17:37]} 16. e5 {[%emt 0:00:00]} Be7 {[%emt 0:00:00]} 17. Ne4 {[%emt 0:00:00]} dxe5 {[%emt 0:00:00]} 18. fxe5 {[%emt 0:00:00]} h6 {[%emt 0:00:00]} 19. Qf4 {[%emt 0:00:00]} Rhf8 {[%emt 0:00:00]} 20. Nd6 {[%emt 0:00:00]} g5 {[%emt 0:00:00]} 21. Qg3 {[%emt 0:00:00]} b4 {[%emt 0:00:00]} 22. a4 {[%emt 0:00:00]} Qc7 {[%emt 0:01:32]} 23. Be4 {[%emt 0:00:00]} f5 {[%emt 0:02:28]} 24. Bxc6 {[%emt 0:00:00]} Qxc6 {[%emt 0:00:00]} 25. Nd4 {[%emt 0:00:00]} Qc7 {[%emt 0:00:00]} 26. Qf3 {[%emt 0:00:00]} g4 {[%emt 0:00:00]} 27. Qb3 {[%emt 0:00:00]} Bxd6 {[%emt 0:00:10]} 28. exd6 {[%emt 0:00:00]} Rxd6 {[%emt 0:01:37]} 29. Qxb4+ {[%emt 0:00:00]} Qb6 {[%emt 0:00:01]} 30. Nc6+ {[%emt 0:00:00]} Rxc6 {[%emt 0:00:09]} 31. Qxf8 {[%emt 0:00:00]} Qf2 {[%emt 0:00:52]} 32. Qb4+ {[%emt 0:00:00]} Rb6 {[%emt 0:00:01]} 33. Qd4 {[%emt 0:00:00]} Qxd4 {[%emt 0:00:22]} 34. Rxd4 {[%emt 0:00:00]} Kc7 {[%emt 0:00:01]} 35. b4 {[%emt 0:00:50]} Bb7 {[%emt 0:00:20]} 36. g3 {[%emt 0:01:04]} Bd5 {[%emt 0:00:35]} 37. Kb2 {[%emt 0:00:48]} Rc6 {[%emt 0:00:47]} 38. Re3 {[%emt 0:01:48]} Kd6 {[%emt 0:00:25]} 39. Red3 {[%emt 0:01:47]} Ke5 {[%emt 0:00:28]} 40. b5 {[%emt 0:02:33]} axb5 {[%emt 0:00:37]} 41. axb5 {[%emt 0:00:01]} Rb6 {[%emt 0:01:38]} 42. c4 {[%emt 0:00:38]} Be4 {[%emt 0:00:24]} 43. Rd2 {[%emt 0:00:08]} h5 {[%emt 0:00:55]} 44. Kc3 {[%emt 0:00:27]} h4 {[%emt 0:00:15]} 45. Kb4 {[%emt 0:00:36]} hxg3 46. hxg3 {[%emt 0:00:00]} f4 {[%emt 0:01:04]} 47. gxf4+ {[%emt 0:00:06]} Kf5 {[%emt 0:00:38]} 48. Re2 {[%emt 0:00:22]} Ba8 {[%emt 0:00:38]} 49. Re5+ {[%emt 0:00:12]} Kf6 {[%emt 0:00:02]} 50. Rg5 {[%emt 0:00:39]} Bf3 {[%emt 0:00:11]} 51. Rd3 {[%emt 0:00:54]} Rb7 {[%emt 0:00:32]} 52. Rxf3 {[%emt 0:00:13]} gxf3 {[%emt 0:00:02]} 53. Rg3 {[%emt 0:00:01]} Kf5 {[%emt 0:00:42]} 54. Rxf3 {[%emt 0:00:02]} Ke4 {[%emt 0:00:01]} 55. Rf1 {[%emt 0:00:18]} Kd4 {[%emt 0:00:25]} 56. Rd1+ {[%emt 0:00:22]} Ke4 {[%emt 0:00:01]} 57. Re1+ $18 {[%emt 0:09:11]} 1-0

[Event "Romanian Amateur Championship 2024"]
[Site "Eforie Nord"]
[Date "2024.02.29"]
[Round "7.2"]
[White "Tanasie, Cosmin"]
[Black "Leu, Dragos Stefan"]
[Result "1/2-1/2"]
[ECO "A45"]
[WhiteElo "2017"]
[BlackElo "1838"]
[Annotator "NA RC"]
[PlyCount "140"]
[EventDate "2024.02.26"]
[EventType "swiss"]
[EventCountry "ROU"]
[SourceTitle "playchess.com"]
[Source "ChessBase"]
[SourceQuality "1"]
[TimeControl "3600+30"]

1. d4 {[%emt 0:00:06]} Nf6 {[%emt 0:00:04]} 2. Bf4 {[%emt 0:00:06]} g6 {[%emt 0:00:06]} 3. Nc3 {[%emt 0:00:03]} d5 {[%emt 0:00:04]} 4. e3 {[%emt 0:00:04]} Bg7 {[%emt 0:00:03]} 5. h4 {[%emt 0:00:04]} h5 {[%emt 0:02:11]} 6. Nf3 {[%emt 0:00:11] A45: Trompowsky Attack.} O-O {[%emt 0:00:54]} 7. Ne5 {[%emt 0:00:04]} c5 {[%emt 0:00:25]} 8. Qd2 {[%emt 0:00:09]} Nc6 {[%emt 0:00:13]} 9. O-O-O {[%emt 0:00:48]} cxd4 {[%emt 0:01:54]} 10. exd4 {[%emt 0:00:08]} Bf5 {[%emt 0:00:13]} 11. f3 {[%emt 0:00:38]} Rc8 {[%emt 0:02:53]} 12. a3 {[%emt 0:03:36]} a6 {[%emt 0:04:53]} 13. Nxc6 {[%emt 0:19:51]} Rxc6 {[%emt 0:00:34]} 14. Bd3 {[%emt 0:00:04]} Qd7 {[%emt 0:01:55]} 15. Rde1 {[%emt 0:00:15]} Bxd3 {[%emt 0:07:03]} 16. Qxd3 {[%emt 0:00:02]} Rfc8 {[%emt 0:00:21]} 17. Re2 {[%emt 0:01:42]} b5 {[%emt 0:05:58]} 18. Rhe1 {[%emt 0:00:20]} Bf8 {[%emt 0:01:43]} 19. Bg5 $15 {[%emt 0:00:20]} Rc4 {[%emt 0:01:42]} 20. Nd1 {[%emt 0:00:27]} a5 {[%emt 0:03:25]} 21. Ne3 {[%emt 0:06:12]} R4c7 {[%emt 0:01:46]} 22. Qb3 {[%emt 0:01:16]} a4 {[%emt 0:05:29]} 23. Qd3 {[%emt 0:00:21]} Rb7 {[%emt 0:01:01]} 24. c3 {[%emt 0:06:39]} b4 {[%emt 0:00:36]} 25. axb4 {[%emt 0:00:02]} Rxb4 {[%emt 0:00:01]} 26. Rc2 {[%emt 0:01:10]} Rb6 {[%emt 0:06:37]} 27. Bf4 {[%emt 0:02:19]} Ra8 {[%emt 0:05:32]} 28. Kd2 {[%emt 0:02:44]} Qb7 {[%emt 0:01:13]} 29. Nd1 {[%emt 0:05:24]} a3 {[%emt 0:01:43]} 30. bxa3 {[%emt 0:00:07]} Rxa3 {[%emt 0:00:09]} 31. Ke2 {[%emt 0:01:04]} Qa6 {[%emt 0:05:51]} 32. Qxa6 {[%emt 0:00:55]} Rbxa6 {[%emt 0:00:08]} 33. Kd3 {[%emt 0:00:35]} Nd7 {[%emt 0:04:18]} 34. Ne3 {[%emt 0:00:44]} e6 {[%emt 0:00:28]} 35. Rb1 {[%emt 0:00:21]} Bd6 {[%emt 0:01:28]} 36. Bxd6 {[%emt 0:00:51]} Rxd6 {[%emt 0:00:00]} 37. Rcb2 {[%emt 0:02:37]} Rc6 {[%emt 0:01:18]} 38. Rb3 {[%emt 0:00:54]} Rxb3 {[%emt 0:01:09]} 39. Rxb3 {[%emt 0:00:01]} Nb6 {[%emt 0:00:21]} 40. Rb4 {[%emt 0:00:03]} Kg7 {[%emt 0:00:25]} 41. g3 {[%emt 0:00:31]} Nc8 {[%emt 0:00:40]} 42. c4 {[%emt 0:01:02]} dxc4+ {[%emt 0:00:20]} 43. Nxc4 {[%emt 0:00:18]} Ne7 {[%emt 0:01:15]} 44. Rb7 {[%emt 0:00:34]} Kf8 {[%emt 0:03:08]} 45. Ne5 {[%emt 0:00:20]} Rd6 {[%emt 0:00:51]} 46. g4 {[%emt 0:01:03]} f6 {[%emt 0:00:34]} 47. Nc4 {[%emt 0:02:25]} Rd8 {[%emt 0:00:33]} 48. Rb6 {[%emt 0:00:39]} Nd5 {[%emt 0:00:27]} 49. Rb7 {[%emt 0:00:27]} Ne7 {[%emt 0:00:32]} 50. Nb6 {[%emt 0:06:56]} Ke8 {[%emt 0:00:07]} 51. Ke3 {[%emt 0:00:41]} Kf8 {[%emt 0:00:55]} 52. Nd7+ {[%emt 0:00:38]} Kf7 {[%emt 0:00:00]} 53. Kf4 {[%emt 0:01:16]} Ra8 {[%emt 0:00:49]} 54. g5 {[%emt 0:00:23]} f5 {[%emt 0:00:35]} 55. Ne5+ {[%emt 0:00:37]} Ke8 {[%emt 0:00:34]} 56. Nc4 {[%emt 0:00:43]} Rd8 {[%emt 0:00:32]} 57. Ke5 {[%emt 0:00:55]} Nc6+ {[%emt 0:00:25]} 58. Kxe6 {[%emt 0:01:51]} Nxd4+ {[%emt 0:00:02]} 59. Kf6 {[%emt 0:00:54]} Nxf3 {[%emt 0:00:21]} 60. Re7+ {[%emt 0:02:11]} Kf8 {[%emt 0:00:02]} 61. Rh7 {[%emt 0:00:53]} Ke8 {[%emt 0:01:23]} 62. Kxg6 {[%emt 0:01:05]} Nxh4+ {[%emt 0:00:01]} 63. Kxh5 {[%emt 0:00:11]} Ng2 {[%emt 0:00:34]} 64. Kg6 {[%emt 0:00:48]} f4 {[%emt 0:00:21]} 65. Kf6 {[%emt 0:00:17]} f3 {[%emt 0:01:07]} 66. g6 {[%emt 0:00:01]} f2 {[%emt 0:00:09]} 67. Re7+ {[%emt 0:01:50]} Kf8 {[%emt 0:00:12]} 68. Rf7+ {[%emt 0:00:09]} Kg8 {[%emt 0:00:29]} 69. Ke7 {[%emt 0:00:59]} Rd4 {[%emt 0:00:51]} 70. Rxf2 {[%emt 0:00:41]} Rxc4 {[%emt 0:00:07]} 1/2-1/2

[Event "Romanian Amateur Championship 2024"]
[Site "Eforie Nord"]
[Date "2024.02.29"]
[Round "7.3"]
[White "Petroff, Vlad"]
[Black "Sprincean, Lukas George"]
[Result "1-0"]
[ECO "B11"]
[WhiteElo "1655"]
[BlackElo "1640"]
[Annotator "NA RC"]
[PlyCount "100"]
[EventDate "2024.02.26"]
[EventType "swiss"]
[EventCountry "ROU"]
[SourceTitle "playchess.com"]
[Source "ChessBase"]
[SourceQuality "1"]
[TimeControl "3600+30"]

1. e4 {[%emt 0:00:05]} c6 {[%emt 0:00:29]} 2. Nc3 {[%emt 0:00:35]} d5 {[%emt 0:00:10]} 3. Nf3 {[%emt 0:01:13]} dxe4 {[%emt 0:00:12]} 4. Nxe4 {[%emt 0:00:06]} Nf6 {[%emt 0:00:04]} 5. Qe2 {[%emt 0:00:32]} Nxe4 {[%emt 0:00:07]} 6. Qxe4 {[%emt 0:00:11]} Qa5 {[%emt 0:00:03]} 7. Bd3 {[%emt 0:02:53]} Nd7 {[%emt 0:03:21]} 8. O-O {[%emt 0:05:40]} Nf6 {[%emt 0:10:35]} 9. Qh4 {[%emt 0:03:38]} Bg4 {[%emt 0:05:14]} 10. Qg3 {[%emt 0:00:58]} e6 {[%emt 0:03:09]} 11. h3 {[%emt 0:01:12]} Bh5 {[%emt 0:04:20]} 12. Bc4 {[%emt 0:09:15]} O-O-O {[%emt 0:01:26]} 13. d3 {[%emt 0:00:15]} Rg8 {[%emt 0:06:34]} 14. Bd2 {[%emt 0:05:00]} Qb6 {[%emt 0:02:14]} 15. Bc3 {[%emt 0:07:49]} Be7 {[%emt 0:04:24]} 16. a4 {[%emt 0:07:56]} g5 {[%emt 0:05:04]} 17. a5 {[%emt 0:04:26]} Qc7 {[%emt 0:02:02]} 18. Be5 {[%emt 0:01:03]} Bd6 {[%emt 0:00:01]} 19. Bxd6 {[%emt 0:00:22]} Qxd6 {[%emt 0:03:50]} 20. Qxd6 {[%emt 0:04:01]} Rxd6 {[%emt 0:00:11]} 21. Nd2 {[%emt 0:00:26]} g4 {[%emt 0:01:29]} 22. h4 {[%emt 0:00:36]} Bg6 {[%emt 0:00:12]} 23. g3 {[%emt 0:00:25]} Re8 {[%emt 0:03:22]} 24. Rfe1 {[%emt 0:01:43]} e5 {[%emt 0:01:05]} 25. Ne4 {[%emt 0:02:15]} Nxe4 {[%emt 0:00:16]} 26. dxe4 {[%emt 0:00:08]} Rd2 {[%emt 0:00:58]} 27. Bd3 {[%emt 0:01:06]} Rd8 {[%emt 0:01:24]} 28. Re3 {[%emt 0:04:52]} Rf8 {[%emt 0:02:24]} 29. Kf1 {[%emt 0:02:20]} f5 {[%emt 0:00:07]} 30. Ke1 {[%emt 0:01:44]} f4 {[%emt 0:05:34]} 31. Kxd2 {[%emt 0:00:05]} fxe3+ {[%emt 0:00:01]} 32. Kxe3 {[%emt 0:00:03]} Rf3+ {[%emt 0:00:43]} 33. Ke2 {[%emt 0:00:06]} c5 {[%emt 0:00:04]} 34. Rd1 {[%emt 0:02:26]} Rf6 {[%emt 0:00:28]} 35. b3 {[%emt 0:00:47]} a6 {[%emt 0:00:22]} 36. Rf1 {[%emt 0:01:05]} Bh5 {[%emt 0:00:43]} 37. Ke3 {[%emt 0:01:43]} Rf3+ {[%emt 0:00:16]} 38. Kd2 {[%emt 0:00:00]} Kc7 {[%emt 0:00:23]} 39. Be2 {[%emt 0:00:00]} Rf6 {[%emt 0:00:08]} 40. Ke3 {[%emt 0:00:00]} Rg6 {[%emt 0:00:24]} 41. Rd1 {[%emt 0:00:07]} Re6 {[%emt 0:00:46]} 42. Rd5 {[%emt 0:02:23]} Kc6 43. Rd8 {[%emt 0:00:00]} Kc7 {[%emt 0:00:21]} 44. Rg8 {[%emt 0:00:00]} h6 {[%emt 0:00:06]} 45. Rg7+ {[%emt 0:00:15]} Kc6 {[%emt 0:01:04]} 46. Bc4 {[%emt 0:00:36]} Rf6 {[%emt 0:00:00]} 47. Re7 {[%emt 0:00:42]} Rf3+ {[%emt 0:00:44]} 48. Ke2 {[%emt 0:00:17]} b5 {[%emt 0:01:13]} 49. axb6 Kxb6 50. Rxe5 {[%emt 0:00:30]} Bg6 {[%emt 0:00:10]} 1-0

[Event "Romanian Amateur Championship 2024"]
[Site "Eforie Nord"]
[Date "2024.02.29"]
[Round "7.4"]
[White "Rusu, Adrian"]
[Black "Nagy, Janos-Nandor"]
[Result "1/2-1/2"]
[ECO "B13"]
[WhiteElo "1734"]
[BlackElo "1910"]
[Annotator "NA RC"]
[PlyCount "78"]
[EventDate "2024.02.26"]
[EventType "swiss"]
[EventCountry "ROU"]
[SourceTitle "playchess.com"]
[Source "ChessBase"]
[SourceQuality "1"]
[TimeControl "3600+30"]

1. e4 {[%emt 0:00:05]} c6 {[%emt 0:00:33]} 2. d4 {[%emt 0:00:07]} d5 {[%emt 0:00:07]} 3. exd5 {[%emt 0:00:03]} cxd5 {[%emt 0:00:09]} 4. Bd3 {[%emt 0:00:05]} Nc6 {[%emt 0:00:20]} 5. c3 {[%emt 0:00:04]} Qc7 {[%emt 0:00:22]} 6. Nf3 {[%emt 0:00:46]} Bg4 {[%emt 0:00:28]} 7. Be3 {[%emt 0:02:34]} e6 {[%emt 0:00:25]} 8. Nbd2 {[%emt 0:00:36]} Bd6 {[%emt 0:00:37]} 9. h3 {[%emt 0:01:28]} Bh5 {[%emt 0:00:17]} 10. Qc2 {[%emt 0:01:48]} Rc8 {[%emt 0:03:04]} 11. O-O {[%emt 0:01:20]} Bg6 {[%emt 0:01:11]} 12. Rae1 {[%emt 0:00:35]} Nge7 {[%emt 0:00:26]} 13. Nh4 {[%emt 0:00:28]} Bxd3 {[%emt 0:01:06]} 14. Qxd3 {[%emt 0:00:09]} O-O {[%emt 0:00:22]} 15. f4 {[%emt 0:00:23]} b5 {[%emt 0:03:58]} 16. Nb3 {[%emt 0:03:22]} b4 {[%emt 0:01:18]} 17. Nc5 {[%emt 0:00:23]} Bxc5 {[%emt 0:03:58]} 18. dxc5 {[%emt 0:00:43]} bxc3 {[%emt 0:00:49]} 19. bxc3 {[%emt 0:03:52]} Ng6 {[%emt 0:03:00]} 20. Nxg6 {[%emt 0:04:01]} hxg6 {[%emt 0:02:05]} 21. Rb1 {[%emt 0:04:26]} Na5 {[%emt 0:02:15]} 22. Bd4 {[%emt 0:07:51]} Nb7 {[%emt 0:03:33]} 23. c6 {[%emt 0:03:21]} Qxc6 {[%emt 0:00:28]} 24. Bxa7 {[%emt 0:00:27]} Nc5 {[%emt 0:01:48]} 25. Qe3 {[%emt 0:02:38]} Ne4 {[%emt 0:01:00]} 26. Rfc1 {[%emt 0:00:20]} Qc4 {[%emt 0:01:31]} 27. Rb3 {[%emt 0:05:19]} Ra8 {[%emt 0:02:00]} 28. Rc2 {[%emt 0:00:11]} Rfc8 {[%emt 0:00:41]} 29. Kh2 {[%emt 0:03:18]} Nd6 {[%emt 0:02:46]} 30. Rb4 {[%emt 0:04:09]} Qa6 {[%emt 0:04:47]} 31. Bd4 {[%emt 0:00:21]} Nf5 {[%emt 0:00:36]} 32. Qf2 {[%emt 0:01:43]} Rc4 {[%emt 0:00:52]} 33. Rcb2 {[%emt 0:01:30]} Rcc8 {[%emt 0:04:23]} 34. Be5 {[%emt 0:01:14]} Qd3 {[%emt 0:07:13]} 35. Rb7 {[%emt 0:01:14]} Ne3 {[%emt 0:01:30]} 36. Rxf7 {[%emt 0:05:00]} Nf1+ {[%emt 0:11:45]} 37. Kg1 {[%emt 0:01:00]} Ng3 {[%emt 0:04:28]} 38. Rxg7+ {[%emt 0:00:29]} Kf8 {[%emt 0:00:07]} 39. Qb6 {[%emt 0:02:40]} Qd1+ {[%emt 0:02:52]} 1/2-1/2

[Event "Romanian Amateur Championship 2024"]
[Site "Eforie Nord"]
[Date "2024.03.01"]
[Round "8.1"]
[White "Petroff, Vlad"]
[Black "Raducanu, Andrei-Augustin"]
[Result "1-0"]
[ECO "D00"]
[WhiteElo "1655"]
[BlackElo "1946"]
[Annotator "NA RC"]
[PlyCount "63"]
[EventDate "2024.02.26"]
[EventType "swiss"]
[EventCountry "ROU"]
[SourceTitle "playchess.com"]
[Source "ChessBase"]
[SourceQuality "1"]
[TimeControl "3600+30"]

1. d4 {[%emt 0:00:06]} d5 {[%emt 0:00:09]} 2. Bg5 {[%emt 0:00:09]} c6 {[%emt 0:00:10]} 3. e3 {[%emt 0:00:26]} Qb6 {[%emt 0:00:13]} 4. b3 {[%emt 0:01:11]} Bf5 {[%emt 0:01:26]} 5. Nf3 {[%emt 0:01:38]} e6 {[%emt 0:04:22]} 6. Nbd2 {[%emt 0:02:59]} h6 {[%emt 0:04:37]} 7. Bh4 {[%emt 0:02:24]} Ba3 {[%emt 0:06:25]} 8. Be2 {[%emt 0:07:05]} Qa5 {[%emt 0:14:14]} 9. O-O {[%emt 0:01:12]} Bb2 {[%emt 0:02:48]} 10. Rb1 {[%emt 0:00:22]} Bc3 {[%emt 0:04:44]} 11. a4 {[%emt 0:03:01]} g5 {[%emt 0:04:57]} 12. Bg3 {[%emt 0:02:44]} Na6 {[%emt 0:05:35]} 13. b4 {[%emt 0:09:25]} Nxb4 {[%emt 0:01:08]} 14. Nb3 {[%emt 0:01:18]} Qxa4 {[%emt 0:03:37]} 15. Bd3 {[%emt 0:02:17]} b6 {[%emt 0:05:29]} 16. Bxf5 {[%emt 0:04:28]} exf5 {[%emt 0:00:02]} 17. Ne5 {[%emt 0:00:07]} Ne7 {[%emt 0:03:01]} 18. Qh5 {[%emt 0:03:12]} Rh7 {[%emt 0:00:05]} 19. Nf3 {[%emt 0:01:24]} O-O-O {[%emt 0:03:16]} 20. Nxg5 {[%emt 0:01:07]} Rg7 {[%emt 0:00:38]} 21. Nxf7 {[%emt 0:00:15]} Rdg8 {[%emt 0:01:46]} 22. Qxh6 {[%emt 0:05:03]} Ng6 {[%emt 0:01:02]} 23. Nd6+ {[%emt 0:01:05]} Kd7 {[%emt 0:00:57]} 24. Nxf5 {[%emt 0:00:21]} Rf7 {[%emt 0:00:04]} 25. Qh3 {[%emt 0:01:02]} Kd8 {[%emt 0:00:20]} 26. Nh6 {[%emt 0:01:29]} Rh7 {[%emt 0:00:06]} 27. Qe6 {[%emt 0:00:10]} Rgg7 {[%emt 0:00:19]} 28. Nf5 {[%emt 0:00:12]} Rf7 {[%emt 0:02:26]} 29. Qxg6 {[%emt 0:00:20]} Qa6 {[%emt 0:00:25]} 30. Nd6 {[%emt 0:03:14]} Rd7 {[%emt 0:00:37]} 31. Qe8+ {[%emt 0:00:17]} Kc7 {[%emt 0:00:02]} 32. Nf7+ {[%emt 0:00:21]} 1-0

[Event "Romanian Amateur Championship 2024"]
[Site "Eforie Nord"]
[Date "2024.03.01"]
[Round "8.3"]
[White "Leu, Dragos Stefan"]
[Black "Velciu, Gheorghe"]
[Result "1-0"]
[ECO "A48"]
[WhiteElo "1838"]
[BlackElo "1817"]
[Annotator "NA RC"]
[PlyCount "61"]
[EventDate "2024.02.26"]
[EventType "swiss"]
[EventCountry "ROU"]
[SourceTitle "playchess.com"]
[Source "ChessBase"]
[SourceQuality "1"]
[TimeControl "3600+30"]

1. d4 {[%emt 0:00:14]} Nf6 {[%emt 0:00:10]} 2. Bf4 {[%emt 0:00:02]} g6 {[%emt 0:01:14]} 3. e3 {[%emt 0:00:04]} Bg7 {[%emt 0:00:11]} 4. Nf3 {[%emt 0:00:06]} d6 {[%emt 0:00:23]} 5. h3 {[%emt 0:00:17]} Nbd7 {[%emt 0:00:35]} 6. Be2 {[%emt 0:01:20]} c5 {[%emt 0:00:52]} 7. O-O {[%emt 0:00:09]} O-O {[%emt 0:00:14]} 8. c4 {[%emt 0:00:08]} Qb6 {[%emt 0:04:32]} 9. Qc2 {[%emt 0:14:15]} Re8 {[%emt 0:04:00]} 10. Rd1 {[%emt 0:02:54]} e5 {[%emt 0:06:20]} 11. dxe5 {[%emt 0:01:32]} dxe5 {[%emt 0:00:17]} 12. Bh2 {[%emt 0:00:12]} Qc7 {[%emt 0:08:58]} 13. Nc3 {[%emt 0:01:19]} a6 {[%emt 0:00:17]} 14. Nd5 {[%emt 0:06:52]} Nxd5 {[%emt 0:00:40]} 15. cxd5 {[%emt 0:00:19]} f6 {[%emt 0:09:05]} 16. h4 {[%emt 0:08:58]} Rb8 {[%emt 0:06:48]} 17. h5 {[%emt 0:02:58]} g5 {[%emt 0:02:47]} 18. Bd3 {[%emt 0:00:49]} h6 {[%emt 0:05:49]} 19. Rac1 {[%emt 0:09:59]} Qd8 {[%emt 0:03:24]} 20. Nd2 {[%emt 0:07:39]} b5 {[%emt 0:01:47]} 21. Bg6 {[%emt 0:01:09]} Rf8 {[%emt 0:00:36]} 22. Ne4 {[%emt 0:00:11]} c4 {[%emt 0:01:06]} 23. Nd6 {[%emt 0:00:43]} Nc5 {[%emt 0:01:23]} 24. Nxc8 {[%emt 0:00:40]} Rxc8 {[%emt 0:01:16]} 25. Bf5 {[%emt 0:00:55]} Rc7 {[%emt 0:01:18]} 26. d6 {[%emt 0:06:54]} Rc6 {[%emt 0:03:40]} 27. d7 {[%emt 0:01:53]} Qe7 {[%emt 0:00:59]} 28. Qd2 {[%emt 0:00:29]} Rd8 {[%emt 0:02:32]} 29. Qd5+ {[%emt 0:00:13]} Re6 {[%emt 0:00:03]} 30. b4 {[%emt 0:00:54]} Rxd7 {[%emt 0:02:03]} 31. Bxe6+ {[%emt 0:00:07]} 1-0

[Event "Romanian Amateur Championship 2024"]
[Site "Eforie Nord"]
[Date "2024.03.01"]
[Round "8.4"]
[White "Tudoroiu, Razvan-Catalin"]
[Black "Rusu, Adrian"]
[Result "1-0"]
[ECO "A45"]
[WhiteElo "2031"]
[BlackElo "1734"]
[Annotator "NA RC"]
[PlyCount "85"]
[EventDate "2024.02.26"]
[EventType "swiss"]
[EventCountry "ROU"]
[SourceTitle "playchess.com"]
[Source "ChessBase"]
[SourceQuality "1"]
[TimeControl "3600+30"]

1. d4 {[%emt 0:00:33]} Nf6 {[%emt 0:00:11]} 2. Bf4 {[%emt 0:00:11]} e6 {[%emt 0:00:06]} 3. e3 {[%emt 0:00:19]} c5 {[%emt 0:00:09]} 4. Nd2 {[%emt 0:00:29]} cxd4 {[%emt 0:00:52]} 5. exd4 {[%emt 0:00:07]} b6 {[%emt 0:00:03]} 6. Ngf3 {[%emt 0:00:54]} Be7 {[%emt 0:00:12]} 7. h3 {[%emt 0:00:08]} O-O {[%emt 0:00:06]} 8. a4 {[%emt 0:00:39]} d6 {[%emt 0:02:47]} 9. c3 {[%emt 0:00:06]} h6 {[%emt 0:00:58]} 10. Bb5 {[%emt 0:01:57]} Bb7 {[%emt 0:01:50]} 11. O-O {[%emt 0:00:33]} Na6 {[%emt 0:00:03]} 12. Qe2 {[%emt 0:00:28]} Nc7 {[%emt 0:00:14]} 13. Bd3 {[%emt 0:00:16]} Ncd5 {[%emt 0:03:57]} 14. Bh2 {[%emt 0:00:29]} a6 {[%emt 0:00:06]} 15. Rfe1 {[%emt 0:03:38]} Qd7 {[%emt 0:01:53]} 16. Qd1 {[%emt 0:05:47]} b5 {[%emt 0:01:16]} 17. Qb3 {[%emt 0:03:40]} Bc6 {[%emt 0:03:54]} 18. axb5 {[%emt 0:00:29]} axb5 {[%emt 0:00:21]} 19. Rec1 {[%emt 0:05:11]} Nb6 {[%emt 0:05:10]} 20. Ne1 {[%emt 0:04:25]} Nfd5 {[%emt 0:04:19]} 21. Ne4 {[%emt 0:08:27]} f5 {[%emt 0:01:33]} 22. Nd2 {[%emt 0:00:33]} Kh8 {[%emt 0:00:11]} 23. Qd1 {[%emt 0:05:26]} Nf6 {[%emt 0:00:25]} 24. Qe2 {[%emt 0:00:50]} Rxa1 {[%emt 0:07:27]} 25. Rxa1 {[%emt 0:00:02]} Ra8 {[%emt 0:00:03]} 26. Rb1 {[%emt 0:03:16]} Ra2 {[%emt 0:01:05]} 27. Nb3 {[%emt 0:01:34]} Ne4 {[%emt 0:03:31]} 28. Nc1 {[%emt 0:01:51]} Ra8 {[%emt 0:00:44]} 29. Nc2 {[%emt 0:02:38]} Nc4 {[%emt 0:00:16]} 30. f3 {[%emt 0:01:38]} Ned2 {[%emt 0:00:47]} 31. Ra1 {[%emt 0:01:30]} Rxa1 {[%emt 0:03:05]} 32. Nxa1 {[%emt 0:00:01]} e5 {[%emt 0:00:11]} 33. b3 {[%emt 0:02:39]} exd4 {[%emt 0:01:08]} 34. bxc4 {[%emt 0:01:02]} bxc4 {[%emt 0:00:31]} 35. cxd4 {[%emt 0:03:48]} Nxf3+ {[%emt 0:02:29]} 36. gxf3 {[%emt 0:00:18]} cxd3 {[%emt 0:00:10]} 37. Nxd3 {[%emt 0:01:33]} Bf6 {[%emt 0:01:10]} 38. Nc2 {[%emt 0:00:48]} Qa7 {[%emt 0:00:41]} 39. Bxd6 {[%emt 0:02:31]} Bxd4+ {[%emt 0:00:22]} 40. Kg2 {[%emt 0:00:25]} Bb5 {[%emt 0:03:34]} 41. Qd2 {[%emt 0:02:11]} Qa2 {[%emt 0:01:05]} 42. Ndb4 {[%emt 0:01:23]} Qe6 {[%emt 0:02:28]} 43. Qxd4 {[%emt 0:01:00]} 1-0